Workbook

Sheet 예천군
A2: 문화재 지정·보호구역 토지조서(예천군)
A4: 연번 | B4: 지정종별 | D4: 문화재명 | E4: 소재지 | H4: 지번 | K4: 지목 | L4: 지적면적 (㎡) | M4: 당초(㎡) | P4: 조정(㎡) | S4: 비고 | T4: 변경사항 | U4: 검토의견
B5: 종별 | C5: 번호 | E5: 시·군 | F5: 읍·면·동 | G5: 리 | H5: 구분 | I5: 본번 | J5: 부번 | M5: 계 | N5: 문화재 | O5: 보호구역 | P5: 계 | Q5: 문화재 | R5: 보호구역
A6: 1 | B6: 유형문화재 | C6: 5 | D6: 한천사 삼층석탑 | E6: 예천군 | F6: 감천면 | G6: 증거리 | I6: 184 | K6: 종 | L6: 536 | M6: 536.0 | O6: 536.0 | P6: =SUM(Q6:R6) -> 4.8 | Q6: 4.8 | S6: 삼층석탑
P7: 531.2 | R7: 531.2 | S7: 보호구역
I8: 321 | K8: 도 | L8: 1,200 | M8: 132.5 | O8: 132.5 | P8: 0.4 | Q8: 0.4 | S8: 삼층석탑
P9: 132.3 | R9: 132.3 | S9: 보호구역
I10: 185 | K10: 종 | L10: 983 | M10: 983.0 | O10: 983.0 | P10: 983.0 | R10: 983.0 | S10: 보호구역
I11: 183 | K11: 종 | L11: 693 | M11: 95.7 | O11: 95.7 | P11: 95.7 | R11: 95.7 | S11: 보호구역
I12: 182 | K12: 전 | L12: 1,296 | M12: 297.2 | O12: 297.2 | P12: 297.2 | R12: 297.2 | S12: 보호구역
I13: 192 | K13: 답 | L13: 968 | M13: 676.1 | O13: 676.1 | P13: 674.1 | R13: 674.1 | S13: 보호구역
I14: 185 | J14: 1 | K14: 전 | L14: 1,916 | M14: 354.7 | O14: 354.7 | P14: 357.1 | R14: 357.1 | S14: 보호구역
K15: =COUNT(L6:L14) -> 7 | L15: =K15&"필지" -> 7필지 | M15: =SUM(M6:M14) -> 3,075.2 | O15: =SUM(O6:O14) -> 3,075.2 | P15: 3,075.8 | Q15: =SUM(Q6:Q14) -> 5.2 | R15: =SUM(R6:R14) -> 3,070.6 | S15: =P15-M15 -> 0.6 | T15: 증 0.6㎡
A16: 2 | B16: 유형문화재 | C16: 124 | D16: 예천 흔효리 석조여래입상 | E16: 예천군 | F16: 풍양면 | G16: 흔효리 | I16: 49 | J16: 4 | K16: 잡 | L16: 66 | M16: 66.0 | O16: 66.0 | P16: 0.5 | Q16: 0.5 | S16: 석조여래입상
P17: 65.5 | R17: 65.5 | S17: 보호구역
I18: 49 | J18: 1 | K18: 제 | L18: 2,327 | M18: 1,030.0 | O18: 1,030.0 | P18: 328.5 | R18: 328.5 | S18: 보호구역
I19: 49 | J19: 5 | K19: 전 | L19: 397 | M19: 397.0 | O19: 397.0 | P19: 116.8 | R19: 116.8 | S19: 보호구역
I20: 49 | J20: 3 | K20: 전 | L20: 1,818 | M20: 970.0 | O20: 970.0 | P20: 152.4 | R20: 152.4 | S20: 보호구역
K21: =COUNT(L16:L20) -> 4 | L21: =K21&"필지" -> 4필지 | M21: =SUM(M16:M20) -> 2,463.0 | O21: =SUM(O16:O20) -> 2,463.0 | P21: 663.7 | Q21: =SUM(Q16:Q20) -> 0.5 | R21: =SUM(R16:R20) -> 663.2 | S21: =P21-M21 -> (1,799.3) | T21: 감 1799.3㎡
A22: 3 | B22: 유형문화재 | C22: 173 | D22: 대지재사 | E22: 예천군 | F22: 호명면 | G22: 직산리 | I22: 538 | K22: 대 | L22: 5,905 | M22: 1,190.0 | O22: 1,190.0 | Q22: 133.8 | S22: 재사
R23: 1,764.2 | S23: 보호구역
H24: 산 | I24: 117 | J24: 1 | K24: 임 | L24: 394,711 | M24: 290.0 | O24: 290.0
I25: 536 | K25: 전 | L25: 4,324 | M25: 390.0 | O25: 390.0
I26: 537 | K26: 답 | L26: 1,573 | M26: 85.0 | O26: 85.0
I27: 539 | K27: 대 | L27: 952 | M27: 120.0 | O27: 120.0
K28: =COUNT(L22:L27) -> 5 | L28: 1필지 | M28: =SUM(M22:M27) -> 2,075.0 | O28: =SUM(O22:O27) -> 2,075.0 | P28: =SUM(Q28:R28) -> 1,898.0 | Q28: =SUM(Q22:Q27) -> 133.8 | R28: =SUM(R22:R27) -> 1,764.2 | S28: =P28-M28 -> (177.0) | T28: 감 177.0㎡
A29: 4 | B29: 유형문화재 | C29: 186 | D29: 보문사 삼층석탑 | E29: 예천군 | F29: 보문면 | G29: 수계리 | I29: 158 | K29: 종 | L29: 4,639 | M29: 3,779.0 | O29: 3,779.0 | P29: 3.0 | Q29: 3.0 | S29: 석탑
P30: 3,776.0 | R30: 3,776.0 | S30: 보호구역
K31: =COUNT(L29:L30) -> 1 | L31: =K31&"필지" -> 1필지 | M31: =SUM(M29:M30) -> 3,779.0 | O31: =SUM(O29:O30) -> 3,779.0 | P31: 3,779.0 | Q31: =SUM(Q29:Q30) -> 3.0 | R31: =SUM(R29:R30) -> 3,776.0 | S31: =P31-M31 -> 0.0 | T31: 증감 없음
A32: 5 | B32: 유형문화재 | C32: 187 | D32: 명봉사 문종대왕 태실비 | E32: 예천군 | F32: 효자면 | G32: 명봉리 | I32: 502 | K32: 종 | L32: 6,426 | P32: 2.9 | Q32: 2.9 | S32: 태실비
P33: 192.8 | R33: 192.8 | S33: 보호구역
I34: 501 | L34: 1,283 | M34: 1,283.0 | O34: 1,283.0 | P34: 0.0
H35: 산 | I35: 1 | J35: 1 | K35: 임 | L35: 2,642,562 | P35: 38.7 | R35: 38.7 | S35: 보호구역
K36: =COUNT(L32:L35) -> 3 | L36: 2필지 | M36: =SUM(M32:M35) -> 1,283.0 | O36: =SUM(O32:O35) -> 1,283.0 | P36: 234.4 | Q36: =SUM(Q32:Q35) -> 2.9 | R36: =SUM(R32:R35) -> 231.5 | S36: =P36-M36 -> (1,048.6) | T36: 감 1048.6㎡
A37: 6 | B37: 유형문화재 | C37: 188 | D37: 예천 간방동 삼층석탑 | E37: 예천군 | F37: 보문면 | G37: 간방리 | I37: 287 | J37: 5 | K37: 사 | L37: 66 | M37: 66.0 | O37: 66.0 | P37: 4.7 | Q37: 4.7 | S37: 삼층석탑
P38: 61.3 | R38: 61.3 | S38: 보호구역
I39: 290 | K39: 대 | L39: 3,253 | M39: 917.0 | O39: 917.0 | P39: 915.8 | R39: 915.8 | S39: 보호구역
I40: 290 | J40: 1 | K40: 사 | L40: 10 | M40: 10.0 | O40: 10.0 | P40: 10.0 | R40: 10.0 | S40: 보호구역
I41: 287 | J41: 1 | K41: 대 | L41: 337 | M41: 187.0 | O41: 187.0 | P41: 185.5 | R41: 185.5 | S41: 보호구역
I42: 287 | J42: 3 | K42: 전 | L42: 183 | M42: 183.0 | O42: 183.0 | P42: 183.0 | R42: 183.0 | S42: 보호구역
I43: 287 | J43: 2 | K43: 도 | L43: 159 | P43: 90.9 | R43: 90.9 | S43: 보호구역
I44: 837 | K44: 도 | L44: 3,620 | P44: 53.7 | R44: 53.7 | S44: 보호구역
I45: 286 | J45: 4 | K45: 답 | L45: 1,425 | M45: 15.0 | O45: 15.0 | P45: 2.9 | R45: 2.9 | S45: 보호구역
I46: 286 | J46: 2 | K46: 도 | L46: 192 | M46: 183.0 | O46: 183.0 | P46: 15.2 | R46: 15.2 | S46: 보호구역
I47: 287 | J47: 6 | K47: 전 | L47: 12 | M47: 12.0 | O47: 12.0 | P47: 12.0 | R47: 12.0 | S47: 보호구역
I48: 287 | J48: 7 | K48: 사 | L48: 7 | M48: 7.0 | O48: 7.0 | P48: 7.0 | R48: 7.0 | S48: 보호구역
I49: 287 | J49: 4 | K49: 전 | L49: 539 | M49: 390.0 | O49: 390.0 | P49: 388.9 | R49: 388.9 | S49: 보호구역
K50: =COUNT(L37:L49) -> 12 | L50: =K50&"필지" -> 12필지 | M50: =SUM(M37:M49) -> 1,970.0 | O50: =SUM(O37:O49) -> 1,970.0 | P50: 1,930.9 | Q50: =SUM(Q37:Q49) -> 4.7 | R50: =SUM(R37:R49) -> 1,926.2 | S50: =P50-M50 -> (39.1) | T50: 감 39.1㎡
A51: 7 | B51: 유형문화재 | C51: 210 | D51: 용궁향교 | E51: 예천군 | F51: 용궁면 | G51: 향석리 | I51: 266 | K51: 대 | L51: 2,955 | M51: 2,955.0 | O51: 2,955.0 | P51: 132.8 | Q51: 132.8 | S51: 대성전
P52: 133.9 | Q52: 133.9 | S52: 명륜당
P53: 76.1 | Q53: 76.1 | S53: 동재
P54: 127.0 | Q54: 127.0 | S54: 세심루
P55: 1,921.9 | R55: 1,921.9 | S55: 보호구역
I56: 267 | J56: 3 | K56: 대 | L56: 536 | P56: 34.8 | Q56: 34.8 | S56: 신도문
P57: 270.2 | R57: 270.2 | S57: 보호구역
I58: 674 | K58: 도 | L58: 294 | P58: 23.6 | R58: 23.6 | S58: 보호구역
I59: 272 | J59: 4 | K59: 대 | L59: 1,722 | P59: 12.0 | R59: 12.0 | S59: 보호구역
I60: 267 | J60: 2 | K60: 대 | L60: 126 | P60: =SUM(Q60:R60) -> 1.2 | R60: 1.2 | S60: 보호구역
I61: 267 | J61: 1 | K61: 대 | L61: 1,630 | P61: 0.1 | R61: 0.1 | S61: 보호구역
K62: =COUNT(L51:L61) -> 6 | L62: =K62&"필지" -> 6필지 | M62: =SUM(M51:M61) -> 2,955.0 | O62: =SUM(O51:O61) -> 2,955.0 | P62: 2,733.6 | Q62: =SUM(Q51:Q61) -> 504.6 | R62: =SUM(R51:R61) -> 2,229.0 | S62: =P62-M62 -> (221.4) | T62: 감 221.4㎡
A63: 8 | B63: 유형문화재 | C63: 231 | D63: 무이서당 | E63: 예천군 | F63: 용문면 | G63: 무이리 | I63: 423 | J63: 1 | K63: 대 | L63: 4,043 | M63: 610.9 | O63: 610.9 | P63: 103.9 | Q63: 103.9 | S63: 서당
P64: 42.6 | Q64: 42.6 | S64: 사당
P65: 464.4 | R65: 464.4 | S65: 보호구역
K66: =COUNT(L63:L65) -> 1 | L66: =K66&"필지" -> 1필지 | M66: =SUM(M63:M65) -> 610.9 | O66: =SUM(O63:O65) -> 610.9 | P66: 610.9 | Q66: =SUM(Q63:Q65) -> 146.5 | R66: =SUM(R63:R65) -> 464.4 | S66: =P66-M66 -> 0.0 | T66: 증감 없음
A67: 9 | B67: 유형문화재 | C67: 293 | D67: 윤별동묘 | E67: 예천군 | F67: 보문면 | G67: 미호리 | I67: 60 | J67: 9 | K67: 대 | L67: 186 | M67: =SUM(N67:O67) -> 138.0 | O67: 138.0 | P67: 35.0 | Q67: 35.0 | S67: 사당
M68: 0.0 | P68: 145.0 | R68: 145.0 | S68: 보호구역
I69: 60 | J69: 13 | K69: 대 | L69: 119 | M69: 11.0 | O69: 11.0 | P69: 4.0 | Q69: 4.0 | S69: 사주문
M70: 0.0 | P70: 18.8 | R70: 18.8 | S70: 보호구역
I71: 60 | J71: 8 | K71: 대 | L71: 408 | M71: 38.0 | O71: 38.0 | P71: 4.1 | Q71: 4.1 | S71: 사주문
M72: 0.0 | P72: 26.9 | R72: 26.9 | S72: 보호구역
M73: 0.0 | P73: 5.6 | R73: 5.6 | S73: 보호구역
I74: 60 | J74: 12 | K74: 대 | L74: 281 | M74: 25.0 | O74: 25.0 | P74: 12.0 | R74: 12.0 | S74: 보호구역
I75: 61 | J75: 1 | K75: 대 | L75: 169 | M75: 50.0 | O75: 50.0 | P75: 54.0 | R75: 54.0 | S75: 보호구역
K76: =COUNT(L67:L75) -> 5 | L76: =K76&"필지" -> 5필지 | M76: =SUM(M67:M75) -> 262.0 | O76: =SUM(O67:O75) -> 262.0 | P76: 305.4 | Q76: =SUM(Q67:Q75) -> 43.1 | R76: =SUM(R67:R75) -> 262.3 | S76: =P76-M76 -> 43.4 | T76: 증 43.4㎡
A77: 10 | B77: 유형문화재 | C77: 294 | D77: 이정사 | E77: 예천군 | F77: 용문면 | G77: 구계리 | H77: 산 | I77: 11 | J77: 3 | K77: 임 | L77: 595 | M77: =SUM(N77:O77) -> 595.0 | O77: 595.0 | P77: 70.8 | Q77: 70.8 | S77: 사당
M78: 0.0 | P78: 24.0 | Q78: 24.0 | S78: 삼문
M79: 0.0 | P79: 500.2 | R79: 500.2 | S79: 보호구역
H80: 산 | I80: 12 | K80: 임 | L80: 20,628 | M80: 0.0 | P80: 3.4 | Q80: 3.4 | S80: 사당
M81: 0.0 | P81: 125.2 | R81: 125.2 | S81: 보호구역
H82: 산 | I82: 11 | J82: 1 | K82: 임 | L82: 3,935 | M82: 0.0 | P82: 128.9 | R82: 128.9 | S82: 보호구역
H83: 산 | I83: 11 | J83: 4 | K83: 임 | L83: 1,488 | M83: 0.0 | P83: 138.2 | R83: 138.2 | S83: 보호구역
K84: =COUNT(L77:L83) -> 4 | L84: =K84&"필지" -> 4필지 | M84: =SUM(M77:M83) -> 595.0 | O84: =SUM(O77:O83) -> 595.0 | P84: 990.7 | Q84: =SUM(Q77:Q83) -> 98.2 | R84: =SUM(R77:R83) -> 892.5 | S84: =P84-M84 -> 395.7 | T84: 증 395.7㎡
A85: 11 | B85: 유형문화재 | C85: 315 | D85: 예천 청주정씨 재실 | E85: 예천군 | F85: 호명면 | G85: 본리 | I85: 14 | J85: 2 | K85: 대 | L85: 1,316 | M85: =SUM(N85:O85) -> 1,316.0 | O85: 1,316.0 | P85: 136.8 | Q85: 136.8 | S85: 재실
M86: 0.0 | P86: 61.3 | Q86: 61.3 | S86: 대문채
M87: 0.0 | P87: 1,117.9 | R87: 1,117.9 | S87: 보호구역
I88: 14 | J88: 1 | K88: 전 | L88: 631 | M88: 0.0 | P88: 4.8 | Q88: 4.8 | S88: 재실
M89: 0.0 | P89: 18.7 | Q89: 18.7 | S89: 대문채
M90: 0.0 | P90: 361.5 | R90: 361.5 | S90: 보호구역
K91: =COUNT(L85:L90) -> 2 | L91: =K91&"필지" -> 2필지 | M91: =SUM(M85:M90) -> 1,316.0 | O91: =SUM(O85:O90) -> 1,316.0 | P91: 1,701.0 | Q91: =SUM(Q85:Q90) -> 221.6 | R91: =SUM(R85:R90) -> 1,479.4 | S91: =P91-M91 -> 385.0 | T91: 증 385.0㎡
A92: 12 | B92: 유형문화재 | C92: 476 | D92: 예천 용문사 자운루 | E92: 예천군 | F92: 용문면 | G92: 내지리 | I92: 391 | K92: 종 | L92: 14,196 | M92: =SUM(N92:O92) -> 14,196.0 | O92: 14,196.0 | P92: =SUM(Q92:R92) -> 144.2 | Q92: 144.2 | S92: 자운루
M93: =SUM(N93:O93) -> 0.0 | P93: 14,051.8 | R93: 14,051.8 | S93: 보호구역
K94: =COUNT(L92:L93) -> 1 | L94: =K94&"필지" -> 1필지 | M94: =SUM(M92:M93) -> 14,196.0 | O94: =SUM(O92:O93) -> 14,196.0 | P94: 14,196.0 | Q94: =SUM(Q92:Q93) -> 144.2 | R94: =SUM(R92:R93) -> 14,051.8 | S94: =P94-M94 -> 0.0 | T94: 증감 없음
A95: 13 | B95: 기념물 | C95: 110 | D95: 예천 죽림리 향나무 | E95: 예천군 | F95: 용문면 | G95: 죽림리 | I95: 166 | J95: 2 | K95: 도 | L95: 397 | M95: =SUM(N95:O95) -> 216.9 | O95: 216.9 | P95: 38.9 | Q95: 38.9 | S95: 향나무
M96: 0.0 | P96: 148.2 | Q96: 148.2 | S96: 문화재구역
I97: 166 | J97: 1 | K97: 대 | L97: 341 | M97: 341.0 | O97: 341.0 | P97: 5.1 | Q97: 5.1 | S97: 향나무
M98: 0.0 | P98: 208.4 | Q98: 208.4 | S98: 문화재구역
I99: 387 | J99: 1 | K99: 도 | L99: 2,036 | M99: 0.0 | P99: 75.7 | Q99: 75.7 | S99: 문화재구역
M100: 0.0 | P100: 3.9 | Q100: 3.9 | S100: 향나무
I101: 161 | J101: 4 | K101: 도 | L101: 20 | M101: 0.0 | P101: 20.0 | Q101: 20.0 | S101: 문화재구역
I102: 162 | J102: 3 | K102: 도 | L102: 10 | M102: 0.0 | P102: 9.5 | Q102: 9.5 | S102: 문화재구역
K103: =COUNT(L95:L102) -> 5 | L103: =K103&"필지" -> 5필지 | M103: =SUM(M95:M102) -> 557.9 | O103: =SUM(O95:O102) -> 557.9 | P103: 509.7 | Q103: =SUM(Q95:Q102) -> 509.7 | R103: =SUM(R95:R102) -> 0.0 | S103: =P103-M103 -> (48.2) | T103: 감 48.2㎡
A104: 14 | B104: 기념물 | C104: 111 | D104: 예천 사부리 소나무 | E104: 예천군 | F104: 용문면 | G104: 사부리 | I104: 55 | J104: 2 | K104: 전 | L104: 2,942 | M104: =SUM(N104:O104) -> 101.0 | O104: 101.0 | P104: 49.7 | Q104: 49.7 | S104: 소나무
M105: 0.0 | P105: 58.1 | Q105: 58.1 | S105: 문화재구역
I106: 817 | K106: 도 | L106: 1,269 | M106: 62.0 | O106: 62.0 | P106: 48.3 | Q106: 48.3 | S106: 소나무
M107: 0.0 | P107: 13.0 | Q107: 13.0 | S107: 소나무
I108: 58 | K108: 답 | L108: 810 | M108: 72.0 | O108: 72.0 | P108: 31.5 | Q108: 31.5 | S108: 소나무
M109: 0.0 | P109: 37.1 | Q109: 37.1 | S109: 문화재구역
I110: 813 | K110: 구거 | L110: 107,761 | M110: 60.0 | O110: 60.0 | P110: 30.3 | Q110: 30.3 | S110: 소나무
M111: 0.0 | P111: 27.4 | Q111: 27.4 | S111: 문화재구역
I112: 57 | K112: 답 | L112: 1,501 | M112: 105.0 | O112: 105.0 | P112: 11.8 | Q112: 11.8 | S112: 소나무
M113: 0.0 | P113: 83.7 | Q113: 83.7 | S113: 문화재구역
I114: 56 | J114: 2 | K114: 전 | L114: 3,884 | M114: 4.0 | O114: 4.0 | P114: 5.6 | Q114: 5.6 | S114: 문화재구역
K115: =COUNT(L104:L114) -> 6 | L115: =K115&"필지" -> 6필지 | M115: =SUM(M104:M114) -> 404.0 | O115: =SUM(O104:O114) -> 404.0 | P115: 396.5 | Q115: =SUM(Q104:Q114) -> 396.5 | R115: =SUM(R104:R114) -> 0.0 | S115: =P115-M115 -> (7.5) | T115: 감 7.5㎡
A116: 15 | B116: 민속문화재 | C116: 71 | D116: 예안이씨 별좌공 종택 | E116: 예천군 | F116: 호명면 | G116: 송곡리 | I116: 446 | K116: 대 | L116: 2,800 | M116: =SUM(N116:O116) -> 2,800.0 | O116: 2,800.0 | P116: 279.8 | Q116: 279.8 | S116: 정침
M117: 0.0 | P117: 44.3 | Q117: 44.3 | S117: 사당
M118: 0.0 | P118: 3.5 | Q118: 3.5 | S118: 대문채
M119: 0.0 | P119: 1,266.8 | R119: 1,266.8 | S119: 보호구역
I120: 447 | K120: 대 | L120: 393 | M120: 393.0 | O120: 393.0 | P120: 34.3 | Q120: 34.3 | S120: 대문채
M121: 0.0 | P121: 358.7 | R121: 358.7 | S121: 보호구역
I122: 504 | J122: 1 | K122: 도 | L122: 3,032 | M122: 0.0 | P122: 21.0 | Q122: 21.0 | S122: 대문채
M123: 0.0 | P123: 103.4 | R123: 103.4 | S123: 보호구역
H124: 산 | I124: 52 | J124: 3 | K124: 임 | L124: 146 | M124: 0.0 | P124: =SUM(Q124:R124) -> 100.8 | R124: 100.8 | S124: 보호구역
H125: 산 | I125: 56 | K125: 도 | L125: 496 | M125: 0.0 | P125: 18.6 | R125: 18.6 | S125: 보호구역
H126: 산 | I126: 57 | K126: 구 | L126: 1,918 | M126: 0.0 | P126: 183.8 | R126: 183.8 | S126: 보호구역
H127: 산 | I127: 50 | K127: 임 | L127: 1,223 | M127: 0.0 | P127: 41.5 | R127: 41.5 | S127: 보호구역
I128: 517 | K128: 구 | L128: 11,319 | M128: 0.0 | P128: 147.2 | R128: 147.2 | S128: 보호구역
K129: =COUNT(L116:L128) -> 8 | L129: =K129&"필지" -> 8필지 | M129: =SUM(M116:M128) -> 3,193.0 | O129: =SUM(O116:O128) -> 3,193.0 | P129: 2,603.7 | Q129: =SUM(Q116:Q128) -> 382.9 | R129: =SUM(R116:R128) -> 2,220.8 | S129: =P129-M129 -> (589.3) | T129: 감 589.3㎡
A130: 16 | B130: 민속문화재 | C130: 82 | D130: 예천 상금곡동 추원재 및 사당 | E130: 예천군 | F130: 호명면 | G130: 상금곡리 | I130: 342 | K130: 대 | L130: 2,245 | M130: =SUM(N130:O130) -> 2,245.0 | O130: 2,245.0 | P130: 106.3 | Q130: 106.3 | S130: 추원재
M131: =SUM(N131:O131) -> 0.0 | P131: 60.2 | Q131: 60.2 | S131: 사당
M132: =SUM(N132:O132) -> 0.0 | P132: 2,078.5 | R132: 2,078.5 | S132: 보호구역
K133: =COUNT(L130:L132) -> 1 | L133: =K133&"필지" -> 1필지 | M133: =SUM(M130:M132) -> 2,245.0 | O133: =SUM(O130:O132) -> 2,245.0 | P133: 2,245.0 | Q133: =SUM(Q130:Q132) -> 166.5 | R133: =SUM(R130:R132) -> 2,078.5 | S133: =P133-M133 -> 0.0 | T133: 증감 없음
A134: 17 | B134: 민속문화재 | C134: 102 | D134: 춘우재 고택 | E134: 예천군 | F134: 용문면 | G134: 제곡리 | I134: 197 | K134: 대 | L134: 2,479 | M134: =SUM(N134:O134) -> 2,479.0 | O134: 2,479.0 | P134: 307.5 | Q134: 307.5 | S134: 정침
M135: =SUM(N135:O135) -> 0.0 | P135: 52.0 | Q135: 52.0 | S135: 사당
M136: =SUM(N136:O136) -> 0.0 | P136: 2,119.5 | R136: 2,119.5 | S136: 보호구역
I137: 683 | K137: 도 | L137: 394 | M137: =SUM(N137:O137) -> 102.0 | O137: 102.0 | P137: 105.5 | R137: 105.5 | S137: 보호구역
I138: 198 | K138: 대 | L138: 234 | M138: =SUM(N138:O138) -> 210.0 | O138: 210.0 | P138: 205.0 | R138: 205.0 | S138: 보호구역
K139: =COUNT(L134:L138) -> 3 | L139: =K139&"필지" -> 3필지 | M139: =SUM(M134:M138) -> 2,791.0 | O139: =SUM(O134:O138) -> 2,791.0 | P139: 2,789.5 | Q139: =SUM(Q134:Q138) -> 359.5 | R139: =SUM(R134:R138) -> 2,430.0 | S139: =P139-M139 -> (1.5) | T139: 감 1.5㎡
A140: 18 | B140: 민속문화재 | C140: 103 | D140: 연곡 고택 | E140: 예천군 | F140: 용문면 | G140: 제곡리 | I140: 449 | K140: 대 | L140: 3,488 | M140: =SUM(N140:O140) -> 1,775.0 | O140: 1,775.0 | P140: 330.2 | Q140: 330.2 | S140: 정침
M141: =SUM(N141:O141) -> 0.0 | P141: 43.8 | Q141: 43.8 | S141: 사당
M142: =SUM(N142:O142) -> 0.0 | P142: 40.5 | Q142: 40.5 | S142: 대문채
M143: =SUM(N143:O143) -> 0.0 | P143: 1,357.5 | R143: 1,357.5 | S143: 보호구역
K144: =COUNT(L140:L143) -> 1 | L144: =K144&"필지" -> 1필지 | M144: =SUM(M140:M143) -> 1,775.0 | O144: =SUM(O140:O143) -> 1,775.0 | P144: 1,772.0 | Q144: =SUM(Q140:Q143) -> 414.5 | R144: =SUM(R140:R143) -> 1,357.5 | S144: =P144-M144 -> (3.0) | T144: 감 3.0㎡
A145: 19 | B145: 민속문화재 | C145: 134 | D145: 예천 삼강주막 | E145: 예천군 | F145: 풍양면 | G145: 삼강리 | I145: 166 | J145: 1 | K145: 전 | L145: 129 | M145: =SUM(N145:O145) -> 53.2 | O145: 53.2 | P145: 53.2 | Q145: 53.2 | S145: 삼강주막
M146: 75.8 | O146: 75.8 | P146: 75.8 | R146: 75.8 | S146: 보호구역
I147: 166 | J147: 11 | K147: 제 | L147: 41 | M147: 41.0 | O147: 41.0 | P147: 41.0 | R147: 41.0 | S147: 보호구역
I148: 156 | J148: 4 | K148: 제 | L148: 115 | M148: 115.0 | O148: 115.0 | P148: 115.0 | R148: 115.0 | S148: 보호구역
I149: 156 | J149: 2 | K149: 도 | L149: 457 | M149: 457.0 | O149: 457.0 | P149: 457.0 | R149: 457.0 | S149: 보호구역
I150: 157 | J150: 2 | K150: 도 | L150: 236 | M150: 236.0 | O150: 236.0 | P150: 236.0 | R150: 236.0 | S150: 보호구역
I151: 153 | J151: 3 | K151: 제 | L151: 711 | M151: 711.0 | O151: 711.0 | P151: 711.0 | R151: 711.0 | S151: 보호구역
I152: 156 | K152: 사 | L152: 2,503 | M152: 2,503.0 | O152: 2,503.0 | P152: 2,503.0 | R152: 2,503.0 | S152: 보호구역
I153: 157 | K153: 사 | L153: 2,149 | M153: 2,149.0 | O153: 2,149.0 | P153: 2,149.0 | R153: 2,149.0 | S153: 보호구역
I154: 168 | K154: 사 | L154: 298 | M154: 298.0 | O154: 298.0 | P154: 298.0 | R154: 298.0 | S154: 보호구역
K155: =COUNT(L145:L154) -> 9 | L155: =K155&"필지" -> 9필지 | M155: =SUM(M145:M154) -> 6,639.0 | O155: =SUM(O145:O154) -> 6,639.0 | P155: 6,639.0 | Q155: =SUM(Q145:Q154) -> 53.2 | R155: =SUM(R145:R154) -> 6,585.8 | S155: =P155-M155 -> 0.0 | T155: 증감 없음
A156: 20 | B156: 문화재자료 | C156: 137 | D156: 미산고택 | E156: 예천군 | F156: 용문면 | G156: 대제리 | I156: 259 | K156: 대 | L156: 1,623 | M156: =SUM(N156:O156) -> 1,623.0 | O156: 1,623.0 | P156: =SUM(Q156:R156) -> 136.3 | Q156: 136.3 | S156: 안채
M157: =SUM(N157:O157) -> 0.0 | P157: 57.9 | Q157: 57.9 | S157: 사랑채
M158: =SUM(N158:O158) -> 0.0 | P158: 63.6 | Q158: 63.6 | S158: 문간채
M159: =SUM(N159:O159) -> 0.0 | P159: 16.2 | Q159: 16.2 | S159: 곳간
M160: =SUM(N160:O160) -> 0.0 | P160: 1,349.0 | R160: 1,349.0 | S160: 보호구역
K161: =COUNT(L156:L160) -> 1 | L161: =K161&"필지" -> 1필지 | M161: =SUM(M156:M160) -> 1,623.0 | O161: =SUM(O156:O160) -> 1,623.0 | P161: 1,623.0 | Q161: =SUM(Q156:Q160) -> 274.0 | R161: =SUM(R156:R160) -> 1,349.0 | S161: =P161-M161 -> 0.0 | T161: 증감 없음
A162: 21 | B162: 문화재자료 | C162: 139 | D162: 신천서원 | E162: 예천군 | F162: 예천읍 | G162: 왕신리 | I162: 412 | J162: 1 | K162: 임 | L162: 32,784 | M162: =SUM(N162:O162) -> 2,271.0 | O162: 2,271.0 | P162: 48.0 | Q162: 48.0 | S162: 강당
M163: =SUM(N163:O163) -> 0.0 | P163: 39.1 | Q163: 39.1 | S163: 사당
M164: =SUM(N164:O164) -> 0.0 | P164: 1,848.9 | R164: 1,848.9 | S164: 보호구역
I165: 412 | J165: 2 | K165: 대 | L165: 357 | M165: =SUM(N165:O165) -> 357.0 | O165: 357.0 | P165: 47.8 | Q165: 47.8 | S165: 강당
M166: =SUM(N166:O166) -> 0.0 | P166: 309.2 | R166: 309.2 | S166: 보호구역
K167: =COUNT(L162:L166) -> 2 | L167: =K167&"필지" -> 2필지 | M167: =SUM(M162:M166) -> 2,628.0 | O167: =SUM(O162:O166) -> 2,628.0 | P167: 2,293.0 | Q167: =SUM(Q162:Q166) -> 134.9 | R167: =SUM(R162:R166) -> 2,158.1 | S167: =P167-M167 -> (335.0) | T167: 감 335.0㎡

Sheet Sheet1
